fUSD/lending_fUSD_20250407
["ID","MTS","AMOUNT","RATE_DAILY","PERIOD"]
[357411483,1744051937778,-553.19,0.00044109,30]
[357411484,1744051937813,-560.87,0.00044109,30]
[357411485,1744051937843,-500.0,0.00044109,30]
[357411486,1744051937878,-500.0,0.00044109,30]
[357411487,1744051937923,-500.0,0.00044109,30]
[357411488,1744051937954,-500.0,0.00044109,30]
[357411489,1744051937985,-628.94,0.00044109,30]
[357411490,1744051938015,-743.25,0.00044109,30]
[357411491,1744051938043,-500.0,0.00044109,30]
[357411492,1744051938077,-859.7,0.00044109,30]
[357411493,1744051938105,-500.0,0.00044109,30]
[357411494,1744051938133,-540.89,0.00044109,30]
[357411495,1744051938160,-500.0,0.00044109,30]
[357411496,1744051938192,-839.96,0.00044109,30]
[357411497,1744051938221,-500.0,0.00044109,30]
[357411498,1744051938249,-790.05,0.00044109,30]
[357411499,1744051938277,-863.6,0.00044109,30]
[357411500,1744051938304,-500.0,0.00044109,30]
[357411501,1744051938329,-500.0,0.00044109,30]
[357411502,1744051938357,-500.0,0.00044109,30]
[357411503,1744051938384,-671.15,0.00044109,30]
[357411504,1744051938412,-500.0,0.00044109,30]
[357411505,1744051938443,-1494.76,0.00044109,30]
[357411506,1744051938660,-500.0,0.00044109,30]
[357411507,1744051938690,-491.05914318,0.00044109,30]
[357411508,1744051938718,-500.0,0.00044109,30]
[357411509,1744051938747,-686.53,0.00044109,30]
[357411510,1744051938775,-500.0,0.00044109,30]
[357411511,1744051938805,-741.99,0.00044109,30]
[357411512,1744051938843,-788.7,0.00044109,30]
[357411513,1744051938871,-997.31,0.00044109,30]
[357411514,1744051938900,-500.0,0.00044109,30]
[357411515,1744051938929,-500.0,0.00044109,30]
[357411516,1744051938957,-773.73,0.00044109,30]
[357411517,1744051938988,-2057.62,0.00044109,30]
[357411518,1744051939017,-500.0,0.00044109,30]
[357411519,1744051939045,-500.0,0.00044109,30]
[357411520,1744051939074,-500.0,0.00044109,30]
[357411521,1744051939104,-651.98,0.00044109,30]
[357411522,1744051939132,-554.54,0.00044109,30]
[357411523,1744051939161,-682.23,0.00044109,30]
[357411524,1744051939192,-500.0,0.00044109,30]
[357411525,1744051939220,-500.0,0.00044109,30]
[357411526,1744051939248,-1655.78,0.00044109,30]
[357411527,1744051939276,-500.0,0.00044109,30]
[357411528,1744051939309,-620.57,0.00044109,30]
[357411529,1744051939339,-1132.12,0.00044109,30]
[357411530,1744051939368,-500.0,0.00044109,30]
[357411531,1744051939397,-917.62,0.00044109,30]
[357411532,1744051939427,-803.81,0.00044109,30]
[357411533,1744051939455,-545.03,0.00044109,30]
[357411534,1744051939483,-500.0,0.00044109,30]
[357411535,1744051939511,-500.0,0.00044109,30]
[357411536,1744051939538,-190.30325816,0.00044109,30]
[357411537,1744051939566,-500.0,0.00044109,30]
[357411538,1744051939594,-500.0,0.00044109,30]
[357411539,1744051939622,-500.0,0.00044109,30]
[357411540,1744051939650,-500.0,0.00044109,30]
[357411541,1744051939679,-500.0,0.00044109,30]
[357411542,1744051939707,-500.0,0.00044109,30]
[357411543,1744051939738,-500.0,0.00044109,30]
[357411544,1744051939766,-841.78,0.00044109,30]
[357411545,1744051939796,-754.16,0.00044109,30]
[357411546,1744051939829,-1044.52,0.00044109,30]
[357411547,1744051939858,-500.0,0.00044109,30]
[357411548,1744051939889,-750.42,0.00044109,30]
[357411549,1744051939917,-500.0,0.00044109,30]
[357411550,1744051939945,-500.0,0.00044109,30]
[357411551,1744051939973,-1038.84,0.00044109,30]
[357411552,1744051940001,-2720.92,0.00044109,30]
[357411553,1744051940030,-306.6692186,0.00044109,30]
[357411554,1744051940059,-500.0,0.00044109,30]
[357411555,1744051940087,-500.0,0.00044109,30]
[357411556,1744051940115,-574.64,0.00044109,30]
[357411557,1744051940142,-1000.0,0.00044109,120]
[357411558,1744051940169,-500.0,0.00044109,30]
[357411559,1744051940199,-614.45,0.00044109,30]
[357411560,1744051940228,-500.0,0.00044109,30]
[357411561,1744051940257,-546.27,0.00044109,30]
[357411562,1744051940285,-1091.37,0.00044109,30]
[357411563,1744051940313,-1129.55,0.00044109,30]
[357411564,1744051940339,-500.0,0.00044109,30]
[357411565,1744051940367,-1169.11,0.00044109,30]
[357411566,1744051940394,-500.0,0.00044109,30]
[357411567,1744051940421,-500.0,0.00044109,30]
[357411568,1744051940449,-994.15,0.00044109,30]
[357411569,1744051940487,-500.0,0.00044109,30]
[357411570,1744051940520,-684.77,0.00044109,30]
[357411571,1744051940549,-928.97,0.00044109,30]
[357411572,1744051940577,-624.54,0.00044109,30]
[357411573,1744051940608,-3417.01,0.00044109,30]
[357411574,1744051940636,-500.0,0.00044109,30]
[357411575,1744051940665,-195.73961819,0.00044109,30]
[357411576,1744051940694,-500.0,0.00044109,30]
[357411577,1744051940724,-500.0,0.00044109,30]
[357411578,1744051940753,-787.78,0.00044109,30]
[357411579,1744051940781,-500.0,0.00044109,30]
[357411580,1744051940817,-500.0,0.00044109,30]
[357411581,1744051940846,-500.0,0.00044109,30]
[357411582,1744051940877,-586.38,0.00044109,30]
[357411583,1744051940908,-500.0,0.00044109,30]
[357411584,1744051940937,-1555.27,0.00044109,30]
[357411585,1744051940966,-894.85,0.00044109,30]
[357411586,1744051941000,-500.0,0.00044109,30]
[357411587,1744051941038,-500.0,0.00044109,30]
[357411588,1744051941072,-658.49,0.00044109,30]
[357411589,1744051941104,-2431.64,0.00044109,30]
[357411590,1744051941137,-1566.53,0.00044109,30]
[357411591,1744051941170,-500.0,0.00044109,30]
[357411592,1744051941204,-1017.12,0.00044109,30]
[357411593,1744051941238,-3642.2,0.00044109,30]
[357411594,1744051941268,-500.0,0.00044109,30]
[357411595,1744051941299,-500.0,0.00044109,30]
[357411596,1744051941330,-500.0,0.00044109,30]
[357411597,1744051941361,-500.0,0.00044109,30]
[357411598,1744051941391,-500.0,0.00044109,30]
[357411599,1744051941419,-500.0,0.00044109,30]
[357411600,1744051941448,-500.0,0.00044109,30]
[357411601,1744051941476,-648.63,0.00044109,30]
[357411602,1744051941505,-1025.53,0.00044109,30]
[357411603,1744051941533,-969.69,0.00044109,30]
[357411604,1744051941560,-500.0,0.00044109,30]
[357411605,1744051941590,-639.99148691,0.00044109,30]
[357411606,1744051941619,-500.0,0.00044109,30]
[357411607,1744051941649,-1281.92,0.00044109,30]
[357411608,1744051941679,-690.83,0.00044109,30]
[357411609,1744051941708,-500.0,0.00044109,30]
[357411610,1744051941977,-505.98,0.00044109,30]
[357411611,1744051942007,-551.0,0.00044109,30]
[357411612,1744051942035,-500.0,0.00044109,30]
[357411613,1744051942062,-673.22,0.00044109,30]
[357411614,1744051942090,-500.0,0.00044109,30]
[357411615,1744051942119,-827.14,0.00044109,30]
[357411616,1744051942146,-500.0,0.00044109,30]
[357411617,1744051942172,-769.39,0.00044109,30]
[357411618,1744051942202,-186.85589854,0.00044109,30]
[357411619,1744051942232,-500.0,0.00044109,30]
[357411620,1744051942261,-500.0,0.00044109,30]
[357411621,1744051942291,-500.0,0.00044109,30]
[357411622,1744051942321,-500.0,0.00044109,30]
[357411623,1744051942349,-500.0,0.00044109,30]
[357411624,1744051942376,-632.43,0.00044109,30]
[357411625,1744051942404,-500.0,0.00044109,30]
[357411626,1744051942432,-500.0,0.00044109,30]
[357411627,1744051942460,-500.0,0.00044109,30]
[357411628,1744051942488,-500.0,0.00044109,120]
[357411629,1744051942514,-500.0,0.00044109,30]
[357411630,1744051942541,-500.0,0.00044109,30]
[357411631,1744051942569,-500.0,0.00044109,30]
[357411632,1744051942596,-500.0,0.00044109,30]
[357411633,1744051942626,-2133.48,0.00044109,30]
[357411634,1744051942654,-605.0,0.00044109,30]
[357411636,1744051942684,-500.0,0.00044109,30]
[357411638,1744051942713,-500.0,0.00044109,30]
[357411639,1744051942742,-500.0,0.00044109,30]
[357411640,1744051942771,-1758.91,0.00044109,30]
[357411641,1744051942800,-500.0,0.00044109,30]
[357411642,1744051942831,-1062.97,0.00044109,30]
[357411643,1744051942858,-500.0,0.00044109,30]
[357411644,1744051942887,-990.36,0.00044109,30]
[357411645,1744051942915,-1278.62,0.00044109,30]
[357411646,1744051942946,-500.0,0.00044109,30]
[357411647,1744051942974,-529.64,0.00044109,30]
[357411648,1744051943002,-500.0,0.00044109,30]
[357411649,1744051943030,-500.0,0.00044109,30]
[357411650,1744051943058,-1278.58,0.00044109,30]
[357411651,1744051943085,-428.48,0.00044109,30]
[357411652,1744051943113,-658.74,0.00044109,30]
[357411653,1744051943142,-864.3,0.00044109,30]
[357411654,1744051943169,-500.0,0.00044109,30]
[357411655,1744051943199,-500.0,0.00044109,30]
[357411656,1744051943228,-671.96,0.00044109,30]
[357411657,1744051943256,-777.78,0.00044109,30]
[357411658,1744051943286,-500.0,0.00044109,30]
[357411659,1744051943317,-612.91744738,0.00044109,30]
[357411660,1744051943347,-525.95,0.00044109,30]
[357411661,1744051943375,-647.8,0.00044109,30]
[357411662,1744051943403,-500.0,0.00044109,30]
[357411663,1744051943432,-500.0,0.00044109,30]
[357411664,1744051943460,-500.0,0.00044109,30]
[357411665,1744051943488,-1210.14,0.00044109,30]
[357411666,1744051943517,-2067.85,0.00044109,30]
[357411667,1744051943545,-759.33,0.00044109,30]
[357411668,1744051943573,-912.89,0.00044109,30]
[357411669,1744051943600,-500.0,0.00044109,30]
[357411670,1744051943631,-500.0,0.00044109,30]
[357411671,1744051943659,-500.0,0.00044109,30]
[357411672,1744051943689,-1088.06,0.00044109,30]
[357411673,1744051943718,-500.0,0.00044109,30]
[357411674,1744051943747,-500.0,0.00044109,30]
[357411675,1744051943775,-500.0,0.00044109,30]
[357411676,1744051943806,-1520.39,0.00044109,30]
[357411677,1744051943834,-776.21,0.00044109,30]
[357411678,1744051943863,-1742.74,0.00044109,30]
[357411679,1744051943892,-500.0,0.00044109,30]
[357411680,1744051943919,-905.61,0.00044109,30]
[357411681,1744051943950,-619.3,0.00044109,30]
[357411682,1744051943977,-538.56,0.00044109,30]
[357411683,1744051944006,-206.9622654,0.00044109,30]
[357411684,1744051944037,-1501.37,0.00044109,30]
[357411685,1744051944070,-500.0,0.00044109,30]
[357411686,1744051944101,-155.4843957,0.00044109,30]
[357411687,1744051944133,-1039.98,0.00044109,30]
[357411688,1744051944164,-842.31,0.00044109,30]
[357411689,1744051944203,-500.0,0.00044109,30]
[357411690,1744051944235,-1485.97,0.00044109,30]
[357411691,1744051944267,-500.0,0.00044109,30]
[357411692,1744051944298,-500.0,0.00044109,30]
[357411693,1744051944328,-1000.0,0.00044109,30]
[357411694,1744051944356,-525.94,0.00044109,30]
[357411695,1744051944384,-500.0,0.00044109,30]
[357411696,1744051944413,-500.0,0.00044109,30]
[357411697,1744051944442,-561.5400876,0.00044109,30]
[357411698,1744051944472,-500.0,0.00044109,30]
[357411699,1744051944502,-500.0,0.00044109,30]
[357411700,1744051944530,-500.0,0.00044109,30]
[357411701,1744051944558,-588.54,0.00044109,30]
[357411702,1744051944588,-516.35,0.00044109,30]
[357411703,1744051944617,-500.0,0.00044109,30]
[357411704,1744051944647,-1174.4,0.00044109,30]
[357411705,1744051944675,-500.0,0.00044109,30]
[357411706,1744051944707,-1723.94,0.00044109,30]
[357411707,1744051944738,-500.0,0.00044109,30]
[357411708,1744051944771,-500.0,0.00044109,30]
[357411709,1744051944801,-500.0,0.00044109,30]
[357411710,1744051944832,-500.0,0.00044109,30]
[357411711,1744051944861,-500.0,0.00044109,30]
[357411712,1744051944891,-500.0,0.00044109,30]
[357411713,1744051944919,-500.0,0.00044109,30]
[357411714,1744051944950,-500.0,0.00044109,30]
[357411715,1744051945188,-500.0,0.00044109,30]
[357411716,1744051945219,-500.0,0.00044109,30]
[357411717,1744051945248,-1127.23,0.00044109,30]
[357411718,1744051945275,-500.0,0.00044109,30]
[357411719,1744051945303,-500.0,0.00044109,30]
[357411720,1744051945333,-1253.55,0.00044109,30]
[357411721,1744051945360,-500.0,0.00044109,30]
[357411722,1744051945386,-585.99,0.00044109,30]
[357411723,1744051945412,-708.06,0.00044109,30]
[357411724,1744051945441,-541.94,0.00044109,30]
[357411725,1744051945469,-1247.49,0.00044109,30]
[357411726,1744051945495,-500.0,0.00044109,30]
[357411727,1744051945521,-698.66,0.00044109,30]
[357411728,1744051945549,-500.0,0.00044109,30]
[357411729,1744051945576,-500.0,0.00044109,30]
[357411730,1744051945602,-500.0,0.00044109,30]
[357411731,1744051945628,-574.7,0.00044109,30]
[357411732,1744051945656,-500.0,0.00044109,30]
[357411733,1744051945683,-500.0,0.00044109,30]
[357411734,1744051945712,-1184.71,0.00044109,30]
[357411735,1744051945738,-500.0,0.00044109,30]
[357411736,1744051945765,-636.15,0.00044109,30]
[357411737,1744051945790,-575.55,0.00044109,30]
[357411738,1744051945819,-500.0,0.00044109,30]
[357411739,1744051945847,-591.74,0.00044109,30]
[357411740,1744051945873,-620.04,0.00044109,30]
[357411741,1744051945902,-500.0,0.00044109,30]
[357411742,1744051945929,-1671.53,0.00044109,30]
[357411743,1744051945957,-500.0,0.00044109,30]
[357411744,1744051945985,-500.0,0.00044109,30]
[357411745,1744051946012,-500.0,0.00044109,30]
[357411746,1744051946038,-500.0,0.00044109,30]
[357411747,1744051946065,-731.1,0.00044109,30]
[357411748,1744051946092,-500.0,0.00044109,30]
[357411749,1744051946119,-510.6,0.00044109,30]
[357411750,1744051946146,-534.02,0.00044109,30]
[357411751,1744051946173,-541.35,0.00044109,30]
[357411752,1744051946202,-1297.95,0.00044109,30]
[357411753,1744051946231,-500.0,0.00044109,30]
[357411754,1744051946260,-500.0,0.00044109,30]
[357411755,1744051946288,-11256.29,0.00044109,30]
[357411756,1744051946315,-500.0,0.00044109,30]
[357411757,1744051946344,-656.61,0.00044109,30]
[357411758,1744051946371,-989.10158549,0.00044109,30]
[357411759,1744051946397,-500.0,0.00044109,30]
[357411760,1744051946424,-951.72,0.00044109,30]
[357411761,1744051946452,-500.0,0.00044109,30]
[357411762,1744051946479,-500.0,0.00044109,30]
[357411763,1744051946505,-500.0,0.00044109,30]
[357411764,1744051946531,-500.0,0.00044109,30]
[357411765,1744051946556,-1000.0,0.00044109,30]
[357411766,1744051946584,-500.0,0.00044109,30]
[357411767,1744051946611,-500.0,0.00044109,30]
[357411768,1744051946637,-500.0,0.00044109,30]
[357411769,1744051946665,-867.49,0.00044109,30]
[357411770,1744051946692,-500.0,0.00044109,30]
[357411771,1744051946719,-872.65,0.00044109,30]
[357411772,1744051946747,-1243.23,0.00044109,30]
[357411773,1744051946773,-666.84,0.00044109,30]
[357411774,1744051946801,-500.0,0.00044109,30]
[357411775,1744051946832,-500.0,0.00044109,30]
[357411776,1744051946859,-214.42622412,0.00044109,30]
[357411777,1744051946887,-500.0,0.00044109,30]
[357411778,1744051946914,-640.36802768,0.00044109,30]
[357411779,1744051946941,-500.0,0.00044109,30]
[357411780,1744051946969,-670.24,0.00044109,30]
[357411781,1744051946996,-823.7,0.00044109,30]
[357411782,1744051947025,-500.0,0.00044109,30]
[357411783,1744051947052,-500.0,0.00044109,30]
[357411784,1744051947081,-500.0,0.00044109,30]
[357411785,1744051947109,-855.31,0.00044109,30]
[357411786,1744051947138,-500.0,0.00044109,30]
[357411787,1744051947166,-500.0,0.00044109,30]
[357411788,1744051947193,-500.0,0.00044109,30]
[357411789,1744051947222,-500.0,0.00044109,30]
[357411790,1744051947250,-1514.74,0.00044109,30]
[357411791,1744051947279,-500.0,0.00044109,30]
[357411792,1744051947306,-500.0,0.00044109,30]
[357411793,1744051947334,-500.0,0.00044121,30]
[357411794,1744051947363,-154.32810467,0.00044192,120]
[357411795,1744051947392,-163.04072,0.00044198,120]
[357411796,1744051947420,-263.0,0.000443,30]
[357411797,1744051947450,-154.32810467,0.00044356,120]
[357411798,1744051947480,-500.0,0.00044382,30]
[357411799,1744051947508,-500.0,0.00044382,30]
[357411800,1744051947536,-1664.44,0.00044382,30]
[357411801,1744051947565,-1664.44,0.00044382,30]
[357411802,1744051947594,-916.409898,0.00044383,30]
[357411803,1744051947621,-167.546997,0.00044383,30]
[357411804,1744051947648,-158.644913,0.00044383,30]
[357411805,1744051947675,-9111.53792,0.00044383,30]
[357411806,1744051947703,-205.563459,0.00044383,30]
[357411807,1744051947731,-448.29972069,0.00044383,30]
[357411808,1744051947757,-500.0,0.00044383,30]
[357411809,1744051947783,-346.63780384,0.00044383,30]
[357411810,1744051947811,-500.0,0.00044383,30]
[357411811,1744051947836,-500.0,0.00044383,30]
[357411812,1744051947863,-515.88244108,0.00044383,30]
[357411813,1744051947889,-500.34773341,0.00044383,30]
[357411814,1744051947916,-500.0,0.00044383,30]
[357411815,1744051947942,-500.0,0.00044383,30]
[357411816,1744051947968,-500.0,0.00044383,30]
[357411817,1744051947994,-150.0,0.00044383,30]
[357411818,1744051948020,-500.0,0.00044383,30]
[357411819,1744051948226,-500.0,0.00044383,30]
[357411820,1744051948253,-500.0,0.00044383,30]
[357411821,1744051948281,-500.0,0.00044383,30]
[357411822,1744051948306,-500.0,0.00044383,30]
[357411823,1744051948330,-150.0,0.00044383,30]
[357411824,1744051948356,-500.0,0.00044383,30]
[357411825,1744051948381,-500.0,0.00044383,30]
[357411826,1744051948406,-500.0,0.00044383,30]
[357411827,1744051948430,-500.0,0.00044383,30]
[357411828,1744051948456,-500.0,0.00044383,30]
[357411829,1744051948482,-500.0,0.00044383,30]
[357411830,1744051948508,-547.11,0.00044383,30]
[357411831,1744051948534,-500.0,0.00044383,30]
[357411832,1744051948559,-500.0,0.00044383,30]
[357411833,1744051948584,-500.0,0.00044383,30]
[357411834,1744051948610,-601.76419691,0.00044383,30]
[357411835,1744051948636,-500.0,0.00044383,30]
[357411836,1744051948661,-500.0,0.00044383,30]
[357411837,1744051948687,-500.0,0.00044383,30]
[357411838,1744051948714,-960.42,0.00044383,30]
[357411839,1744051948740,-500.0,0.00044383,30]
[357411840,1744051948766,-500.0,0.00044383,30]
[357411841,1744051948791,-500.0,0.00044383,30]
[357411842,1744051948819,-500.0,0.00044383,30]
[357411843,1744051948844,-500.0,0.00044383,30]
[357411844,1744051948871,-500.0,0.00044383,30]
[357411845,1744051948897,-500.0,0.00044383,30]
[357411846,1744051948923,-500.0,0.00044383,30]
[357411847,1744051948952,-822.99,0.00044383,30]
[357411848,1744051948978,-500.0,0.00044383,30]
[357411849,1744051949004,-500.0,0.00044383,30]
[357411850,1744051949031,-500.0,0.00044383,30]
[357411851,1744051949057,-500.0,0.00044383,30]
[357411852,1744051949084,-500.0,0.00044383,30]
[357411853,1744051949109,-500.0,0.00044383,30]
[357411854,1744051949136,-500.0,0.00044383,30]
[357411855,1744051949162,-500.0,0.00044383,30]
[357411856,1744051949191,-500.0,0.00044383,30]
[357411857,1744051949217,-500.0,0.00044383,30]
[357411858,1744051949245,-500.0,0.00044383,30]
[357411859,1744051949271,-500.0,0.00044383,30]
[357411860,1744051949298,-1310.09,0.00044383,30]
[357411861,1744051949325,-725.3,0.00044383,30]
[357411862,1744051949352,-500.0,0.00044383,30]
[357411863,1744051949379,-500.0,0.00044383,30]
[357411864,1744051949405,-500.0,0.00044383,30]
[357411865,1744051949431,-500.0,0.00044383,30]
[357411866,1744051949458,-500.0,0.00044383,30]
[357411867,1744051949484,-500.0,0.00044383,30]
[357411868,1744051949509,-540.27840228,0.00044383,30]
[357411869,1744051949535,-500.0,0.00044383,30]
[357411870,1744051949561,-500.0,0.00044383,30]
[357411871,1744051949587,-500.0,0.00044383,30]
[357411872,1744051949614,-500.0,0.00044383,30]
[357411873,1744051949640,-500.0,0.00044383,30]
[357411874,1744051949666,-500.0,0.00044383,30]
[357411875,1744051949692,-500.0,0.00044383,30]
[357411876,1744051949718,-500.0,0.00044383,30]
[357411877,1744051949745,-500.0,0.00044383,30]
[357411878,1744051949772,-500.0,0.00044383,30]
[357411879,1744051949801,-563.24,0.00044383,30]
[357411880,1744051949832,-500.0,0.00044383,30]
[357411881,1744051949860,-500.0,0.00044383,30]
[357411882,1744051949888,-623.31,0.00044383,30]
[357411883,1744051949915,-500.0,0.00044383,30]
[357411884,1744051949941,-500.0,0.00044383,30]
[357411885,1744051949967,-500.0,0.00044383,30]
[357411886,1744051949994,-500.0,0.00044383,30]
[357411887,1744051950020,-630.75056408,0.00044383,30]
[357411888,1744051950046,-500.0,0.00044383,30]
[357411889,1744051950073,-500.0,0.00044383,30]
[357411890,1744051950099,-500.0,0.00044383,30]
[357411891,1744051950125,-520.03,0.00044383,30]
[357411892,1744051950153,-500.0,0.00044383,30]
[357411893,1744051950182,-500.0,0.00044383,30]
[357411894,1744051950215,-500.0,0.00044383,30]
[357411895,1744051950242,-500.0,0.00044383,30]
[357411896,1744051950268,-500.0,0.00044383,30]
[357411897,1744051950295,-500.0,0.00044383,30]
[357411898,1744051950322,-500.0,0.00044383,30]
[357411899,1744051950349,-602.04057952,0.00044383,30]
[357411900,1744051950377,-500.0,0.00044383,30]
[357411901,1744051950403,-500.0,0.00044383,30]
[357411902,1744051950429,-843.02,0.00044383,30]
[357411903,1744051950457,-500.0,0.00044383,30]
[357411904,1744051950484,-500.0,0.00044383,30]
[357411905,1744051950510,-500.0,0.00044383,30]
[357411906,1744051950537,-500.0,0.00044383,30]
[357411907,1744051950563,-500.0,0.00044383,30]
[357411908,1744051950589,-500.0,0.00044383,30]
[357411909,1744051950614,-749.93,0.00044383,30]
[357411910,1744051950639,-500.0,0.00044383,30]
[357411911,1744051950666,-500.0,0.00044383,30]
[357411912,1744051950692,-500.0,0.00044383,30]
[357411913,1744051950718,-796.54,0.00044383,30]
[357411914,1744051950745,-500.0,0.00044383,30]
[357411915,1744051950772,-786.13,0.00044383,30]
[357411916,1744051950797,-500.0,0.00044383,30]
[357411917,1744051950826,-500.0,0.00044383,30]
[357411918,1744051950852,-706.82,0.00044383,30]
[357411919,1744051950877,-500.0,0.00044383,30]
[357411920,1744051950905,-500.0,0.00044383,30]
[357411921,1744051950931,-500.0,0.00044383,30]
[357411922,1744051951139,-529.87,0.00044383,30]
[357411923,1744051951167,-331.84268259,0.00044383,30]
[357411924,1744051951197,-500.0,0.00044383,30]
[357411925,1744051951224,-500.0,0.00044383,30]
[357411926,1744051951251,-500.0,0.00044383,30]
[357411927,1744051951278,-500.0,0.00044383,30]
[357411928,1744051951304,-500.0,0.00044383,30]
[357411929,1744051951331,-500.0,0.00044383,30]
[357411930,1744051951358,-500.0,0.00044383,30]
[357411931,1744051951383,-150.0,0.00044383,30]
[357411932,1744051951409,-500.0,0.00044383,30]
[357411933,1744051951436,-500.0,0.00044383,30]
[357411934,1744051951462,-500.0,0.00044383,30]
[357411935,1744051951490,-500.0,0.00044383,30]
[357411936,1744051951516,-500.0,0.00044383,30]
[357411937,1744051951543,-500.0,0.00044383,30]
[357411938,1744051951570,-836.08,0.00044383,30]
[357411939,1744051951596,-500.0,0.00044383,30]
[357411940,1744051951621,-500.0,0.00044383,30]
[357411941,1744051951647,-500.0,0.00044383,30]
[357411942,1744051951673,-500.0,0.00044383,30]
[357411943,1744051951703,-1000.0,0.00044383,30]
[357411944,1744051951730,-500.0,0.00044383,30]
[357411945,1744051951757,-500.0,0.00044383,30]
[357411946,1744051951784,-500.0,0.00044383,30]
[357411947,1744051951812,-500.0,0.00044383,30]
[357411948,1744051951840,-572.38,0.00044383,30]
[357411949,1744051951866,-500.0,0.00044383,30]
[357411950,1744051951893,-573.93,0.00044383,30]
[357411951,1744051951921,-500.0,0.00044383,30]
[357411952,1744051951947,-500.0,0.00044383,30]
[357411953,1744051951975,-680.71,0.00044383,30]
[357411954,1744051952001,-715.14,0.00044383,30]
[357411955,1744051952026,-500.0,0.00044383,30]
[357411956,1744051952054,-690.91,0.00044383,30]
[357411957,1744051952083,-994.62,0.00044383,30]
[357411958,1744051952110,-500.0,0.00044383,30]
[357411959,1744051952137,-500.0,0.00044383,30]
[357411960,1744051952164,-500.0,0.00044383,30]
[357411961,1744051952190,-500.0,0.00044383,30]
[357411962,1744051952217,-598.3,0.00044383,30]
[357411963,1744051952245,-500.0,0.00044383,30]
[357411964,1744051952271,-500.0,0.00044383,30]
[357411965,1744051952298,-500.0,0.00044383,30]
[357411966,1744051952324,-500.0,0.00044383,30]
[357411967,1744051952350,-2430.07,0.00044383,30]
[357411968,1744051952376,-500.0,0.00044383,30]
[357411969,1744051952404,-534.8,0.00044383,30]
[357411970,1744051952431,-500.0,0.00044383,30]
[357411971,1744051952459,-500.0,0.00044383,30]
[357411972,1744051952490,-804.6,0.00044383,30]
[357411973,1744051952516,-500.0,0.00044383,30]
[357411974,1744051952542,-500.0,0.00044383,30]
[357411975,1744051952568,-500.0,0.00044383,30]
[357411976,1744051952594,-500.0,0.00044383,30]
[357411977,1744051952620,-500.0,0.00044383,30]
[357411978,1744051952646,-644.51,0.00044383,30]
[357411979,1744051952673,-500.0,0.00044383,30]
[357411980,1744051952699,-502.76,0.00044383,30]
[357411981,1744051952725,-500.0,0.00044383,30]
[357411982,1744051952752,-261.81437179,0.00044383,30]
[357411983,1744051952778,-500.0,0.00044383,30]
[357411984,1744051952806,-500.0,0.00044383,30]